{"text_format":"1","workbook":"xlsx","n_sheets":6,"sheets":["Anleitung","Persönliche Angaben","Persönlicher Bedarf","Kapitalbedarf","Rentabilitätsplanung 12 Monate","Rentabilitätsplanung 3 Jahre"],"not_rendered":{"charts":0,"images":0,"macros":1,"external_links":0,"defined_names":4,"comments":1,"pivot_tables":0},"unopened":[],"bounds":{"document_bytes":16777216,"sheet_cells":100000,"rows_first":2000,"rows_last":500,"rows_between":2000,"halvings":0,"cell_chars":16384,"cell_head_chars":4096},"cells_cut":0,"cells_raw":0,"read":"whole","date_system":"1900"}

{"sheet":"Anleitung","index":0,"n_rows":14,"n_cols":2,"rows_kept":14,"cut":false,"hidden":false,"merged":[[2,0,2,1]]}
[]
[]
["Anleitung"]
[]
[1,"Beginnen Sie bitte mit dem Register \"Persönlicher Angaben\"."]
[2,"Tragen Sie bitte in die gelben Felder Ihre monatlichen Einnahmen und Ausgaben in Euro ein."]
[3,"Die grauen Felder beinhalten Formeln und sollen nicht überschrieben oder verändert werden."]
[4,"Wenn Sie Unterstützung vom Job-Center erhalten, tragen Sie bitte ganz unten (Zeile 54) ein, ab welchem Monat (0 bis 12) Sie von den erwirtschafteten Gewinnen leben müssen/keine ergänzenden Leistungen mehr beziehen. Falls Sie kein Arbeitslosengeld II empfangen, belassen Sie die \"0\" in der Zeile 54."]
[5,"Danach füllen Sie bitte die nachfolgenden Register in der Reihenfolge \"Kapitalbedarf\", dann \"Rentabilitätsplanung 12 Monate\" und zuletzt \"Rentabilitätsplanung 3 Jahre\"."]
[6,"In den beiden Registern \"Rentabilitätsplanung 12 Monate\" und \"Rentabilitätsplanung 3 Jahre\" sind zusätzlich noch in die gelben Felder die Anzahl der Tage hineinzuschreiben. "]
[]
[]
[]
[null,"Alle Angaben netto, also ohne MwSt. Ausnahme: wenn Sie nicht vorsteuerabzugsberechtigt sind, geben Sie bitte Bruttobeträge an."]

{"sheet":"Persönliche Angaben","index":1,"n_rows":4,"n_cols":1,"rows_kept":4,"cut":false,"hidden":false,"merged":[]}
["Name, Vorname:"]
["Straße & Hausnummer:"]
["PLZ:"]
["Wohnort:"]

{"sheet":"Persönlicher Bedarf","index":2,"n_rows":54,"n_cols":3,"rows_kept":54,"cut":false,"hidden":false,"merged":[[45,0,45,2],[1,0,1,2],[10,0,10,2],[18,0,18,2],[28,0,28,2],[39,0,39,2]]}
[null,"€ (Ausg./Monat)","€ (Ausg./Jahr)"]
["Lebenshaltung "]
["Verpflegung",null,{"$f":"B3*12","v":0}]
["Kleidung",null,0]
["Telefon / Fax / Internet / Handy",null,0]
["Kultur, Freizeit, Bildung",null,0]
["Private PKW-Nutzung",null,0]
["sonstiges (Friseur, Rauchen, Restaurant etc)",null,0]
["Summe Lebenshaltung",{"$f":"SUM(B3+B4+B5+B6+B7+B8)","v":0},{"$f":"SUM(C3+C4+C5+C6+C7+C8)","v":0}]
[]
["Miete / Wohnkosten"]
["Kaltmiete",null,{"$f":"B12*12","v":0}]
["Heizung, Strom, Wasser, Gas",null,{"$f":"12*B13","v":0}]
["Müllabfuhr",null,{"$f":"12*B14","v":0}]
["Schornsteinfeger",null,{"$f":"12*B15","v":0}]
["Grundsteuer",null,{"$f":"12*B16","v":0}]
["Summe Wohnkosten",{"$f":"SUM(B12+B13+B14+B15+B16)","v":0},{"$f":"SUM(C12+C13+C14+C15+C16)","v":0}]
[]
["Sozialversicherungen"]
["Krankenversicherung ",null,{"$f":"12*B20","v":0}]
["Krankenhaustagegeld/Krankengeld",null,0]
["Pflegeversicherung",null,0]
["Zusatzversicherung (privat)",null,0]
["Arbeitslosenversicherung",null,0]
["Rentenversicherung",null,0]
["Berufsunfähigkeitsabsicherung",null,0]
["Summe Sozialversicherungen",{"$f":"SUM(B20+B21+B22+B23+B24+B25+B26)","v":0},{"$f":"SUM(C20+C21+C22+C23+C24+C25+C26)","v":0}]
[]
["Sonstige Versicherungen/Verpflichtungen"]
["Lebensversicherung",null,{"$f":"12*B30","v":0}]
["Unfallversicherung",null,0]
["Hausratversicherung/Gebäuderversicherung",null,0]
["Haftpflichtversicherung",null,0]
["Rechtsschutzversicherung",null,0]
["Bausparvertrag ",null,0]
["Ratenkredit",null,0]
["Hypothekenkredit",null,0]
["Summe sonstige Versicherungen",{"$f":"SUM(B30+B31+B32+B33+B34+B35+B36+B37)","v":0},{"$f":"SUM(C30+C31+C32+C33+C34+C35+C36+C37)","v":0}]
[]
["Rücklagen"]
["Urlaub",null,{"$f":"12*B41","v":0}]
["Krankheit",null,{"$f":"12*B42","v":0}]
["Anschaffungen",null,{"$f":"12*B43","v":0}]
["Summe Rücklagen",{"$f":"SUM(B41+B42+B43)","v":0},{"$f":"SUM(C41+C42+C43)","v":0}]
[]
["Private Einnahmen"]
["Kindergeld",null,{"$f":"12*B47","v":0}]
["(Partner-)Nettogehalt",null,{"$f":"12*B48","v":0}]
["Rente/Miete/Unterhalt",null,{"$f":"12*B49","v":0}]
["Summe private Einnahmen",{"$f":"SUM(B47+B48+B49)","v":0},{"$f":"SUM(C47+C48+C49)","v":0}]
[]
["Gesamtbedarf",{"$f":"B9+B17+B27+B38+B44-B50","v":0},{"$f":"C9+C17+C27+C38+C44-C50","v":0}]
[]
["Ab welchem Monat soll der persönliche Bedarf in die Berechnung einfließen?",null,0]

{"sheet":"Kapitalbedarf","index":3,"n_rows":32,"n_cols":2,"rows_kept":32,"cut":false,"hidden":false,"merged":[[0,0,0,1],[15,0,15,1],[24,0,24,1]]}
["Investitionen"]
["Grunderwerbskosten (Grundstücke/Gebäude/Baukosten)"]
["Umbaumaßnahmen / Renovierung"]
["Maschinen und Geräte inkl. Installation"]
["Lager-/Ladeneinrichtung"]
["Büroeinrichtung, Erstausstattung Büromaterial"]
["Telefon/ Fax / EDV-Anlagen"]
["sonstige Geschäftsausstattung"]
["Fahrzeuge (ggfs. Übernahme aus Privat)"]
["Patente / Lizenzen"]
["Roh-/Hilfs-/Betriebsstoffe"]
["Fertig-Waren"]
["Mietkaution"]
["Summe Investitionen",{"$f":"SUM(B2:B13)","v":0}]
[]
["Gründungskosten"]
["Notar- /Rechtsanwaltskosten"]
["Einführungswerbung"]
["Beratungen/Anmeldung/Genehmigungen"]
["Eintrag ins Handelsregister"]
["sonstige Gründungskosten"]
["Summe Gründungskosten",{"$f":"SUM(B17:B21)","v":0}]
["Gesamt - Kapitalbedarf",{"$f":"B14+B22","v":0}]
[]
["Kapitalherkunft"]
["Eigenkapital"]
["Kredit (privat)"]
["Darlehen (Bank)"]
["Kredit (Job-Center)"]
["Zuschuss (Job-Center)"]
["Fördermittel"]
["Kapitalbedarfsdeckung",{"$f":"B26-B23+B27+B28+B29+B30+B31","v":0}]

{"sheet":"Rentabilitätsplanung 12 Monate","index":4,"n_rows":40,"n_cols":14,"rows_kept":40,"cut":false,"hidden":false,"merged":[[1,0,1,13],[8,0,8,13],[21,0,21,13]]}
[null,"1.Monat","2.Monat","3.Monat","4.Monat","5.Monat","6.Monat","7. Monat","8. Monat","9. Monat","10. Monat","11. Monat","12. Monat","Gesamtjahr"]
["Betriebliche Einnahmen"]
["Tage im Monat",null,null,null,null,null,null,null,null,null,null,null,null,{"$f":"SUM(B3:M3)","v":0}]
["davon Urlaub / geschlossen",null,null,null,null,null,null,null,null,null,null,null,null,{"$f":"SUM(B4:M4)","v":0}]
["umsatzwirksame Tage",{"$f":"B3-B4","v":0},{"$f":"C3-C4","v":0},{"$f":"D3-D4","v":0},{"$f":"E3-E4","v":0},0,0,0,0,0,0,0,0,{"$f":"SUM(B5:M5)","v":0}]
["* durchschn. Umsatz am Tag",null,null,null,null,null,null,null,null,null,null,null,null,{"$f":"(B6+C6+D6+E6+F6+G6+H6+I6+J6+K6+L6+M6)/12","v":0}]
["Umsatz Monat",{"$f":"B5*B6","v":0},{"$f":"C5*C6","v":0},{"$f":"D5*D6","v":0},{"$f":"E5*E6","v":0},0,0,0,0,0,0,0,0,{"$f":"SUM(B7:M7)","v":0}]
["Eigenkapital/Kredit/Zuschuss",{"$f":"Kapitalbedarf!B32","v":0},null,null,null,null,null,null,null,null,null,null,null,{"$f":"SUM(B8:M8)","v":0}]
["Betriebliche variable Ausgaben"]
["Material- und Wareneinkauf",null,null,null,null,null,null,null,null,null,null,null,null,{"$f":"SUM(B10:M10)","v":0}]
["Ausschuss / Garantieleistung",null,null,null,null,null,null,null,null,null,null,null,null,{"$f":"SUM(B11:M11)","v":0}]
["freie Mitarbeiter (Auftragnehmer)",null,null,null,null,null,null,null,null,null,null,null,null,{"$f":"SUM(B12:M12)","v":0}]
["Büromaterial / Porto / Versand",null,null,null,null,null,null,null,null,null,null,null,null,0]
["Telefon / Internet / Mobil",null,null,null,null,null,null,null,null,null,null,null,null,0]
["Marketing",null,null,null,null,null,null,null,null,null,null,null,null,0]
["steuerliche Betreuung",null,null,null,null,null,null,null,null,null,null,null,null,0]
["Fahrzeugkosten",null,null,null,null,null,null,null,null,null,null,null,null,0]
["Reisekosten",null,null,null,null,null,null,null,null,null,null,null,null,0]
["Reparatur / Instandhaltung",null,null,null,null,null,null,null,null,null,null,null,null,0]
["sonstige variable Ausgaben",null,null,null,null,null,null,null,null,null,null,null,null,0]
["Summe variabler Ausgaben",{"$f":"SUM(B10:B20)","v":0},0,0,0,0,0,0,0,0,0,0,0,0]
["Betriebliche fixe Ausgaben"]
["Personal (angestellte Mitarbeiter)",null,null,null,null,null,null,null,null,null,null,null,null,{"$f":"SUM(B23:M23)","v":0}]
["Büromiete, inkl. Nebenkosten",null,null,null,null,null,null,null,null,null,null,null,null,{"$f":"SUM(B24:M24)","v":0}]
["Betriebshaftpflichtversicherung",null,null,null,null,null,null,null,null,null,null,null,null,{"$f":"SUM(B25:M25)","v":0}]
["Rechtschutzversicherung",null,null,null,null,null,null,null,null,null,null,null,null,0]
["Plichtbeiträge (IHK, HWK, BG)",null,null,null,null,null,null,null,null,null,null,null,null,0]
["Abschreibungen",null,null,null,null,null,null,null,null,null,null,null,null,0]
["Fremdkapitalzinsen",null,null,null,null,null,null,null,null,null,null,null,null,0]
["Darlehenstilgung",null,null,null,null,null,null,null,null,null,null,null,null,0]
["Geschäftskonto",null,null,null,null,null,null,null,null,null,null,null,null,0]
["GEZ",null,null,null,null,null,null,null,null,null,null,null,null,0]
["sonstige fixe Ausgaben",null,null,null,null,null,null,null,null,null,null,null,null,0]
["Summe fixer Ausgaben",{"$f":"SUM(B23:B33)","v":0},0,0,0,0,0,0,0,0,0,0,0,0]
["Betriebsergebnis",{"$f":"B7+B8-B21-B34","v":0},{"$f":"C7-C21-C34","v":0},0,0,0,0,0,0,0,0,0,0,0]
["Steuerrücklage",{"$f":"IF(B35<=0,0,B35*0.1)","v":0},{"$f":"IF(C35<=0,0,C35*0.1)","v":0},0,0,0,0,0,0,0,0,0,0,0]
["verfügbares Einkommen",{"$f":"B35-B36","v":0},0,0,0,0,0,0,0,0,0,0,0,0]
["Lebenshaltungskosten \nlt. \"Persönlicher Bedarf\"",{"$f":"IF(VALUE(LEFT(B$1,1))<VALUE('Persönlicher Bedarf'!$C$54),0,'Persönlicher Bedarf'!$B$52)","v":0},{"$f":"IF(VALUE(LEFT(C$1,1))<VALUE('Persönlicher Bedarf'!$C$54),0,'Persönlicher Bedarf'!$B$52)","v":0},{"$f":"IF(VALUE(LEFT(D$1,1))<VALUE('Persönlicher Bedarf'!$C$54),0,'Persönlicher Bedarf'!$B$52)","v":0},{"$f":"IF(VALUE(LEFT(E$1,1))<VALUE('Persönlicher Bedarf'!$C$54),0,'Persönlicher Bedarf'!$B$52)","v":0},{"$f":"IF(VALUE(LEFT(F$1,1))<VALUE('Persönlicher Bedarf'!$C$54),0,'Persönlicher Bedarf'!$B$52)","v":0},{"$f":"IF(VALUE(LEFT(G$1,1))<VALUE('Persönlicher Bedarf'!$C$54),0,'Persönlicher Bedarf'!$B$52)","v":0},{"$f":"IF(VALUE(LEFT(H$1,1))<VALUE('Persönlicher Bedarf'!$C$54),0,'Persönlicher Bedarf'!$B$52)","v":0},{"$f":"IF(VALUE(LEFT(I$1,1))<VALUE('Persönlicher Bedarf'!$C$54),0,'Persönlicher Bedarf'!$B$52)","v":0},{"$f":"IF(VALUE(LEFT(J$1,1))<VALUE('Persönlicher Bedarf'!$C$54),0,'Persönlicher Bedarf'!$B$52)","v":0},{"$f":"IF(VALUE(LEFT(K$1,2))<VALUE('Persönlicher Bedarf'!$C$54),0,'Persönlicher Bedarf'!$B$52)","v":0},{"$f":"IF(VALUE(LEFT(L$1,2))<VALUE('Persönlicher Bedarf'!$C$54),0,'Persönlicher Bedarf'!$B$52)","v":0},{"$f":"IF(VALUE(LEFT(M$1,2))<VALUE('Persönlicher Bedarf'!$C$54),0,'Persönlicher Bedarf'!$B$52)","v":0},0]
["Über-/Unterdeckung",{"$f":"B37-B38","v":0},{"$f":"C37-C38","v":0},{"$f":"D37-D38","v":0},0,0,0,0,0,0,0,0,0,0]
["Kumuliert",{"$f":"B39","v":0},{"$f":"B40+C39","v":0},0,0,0,0,0,0,0,0,0,0,{"$f":"M40","v":0}]

{"sheet":"Rentabilitätsplanung 3 Jahre","index":5,"n_rows":40,"n_cols":4,"rows_kept":40,"cut":false,"hidden":false,"merged":[[8,0,8,3],[22,0,22,3],[1,0,1,3]]}
[null,"1. Jahr","2. Jahr","3. Jahr"]
["Betriebliche Einnahmen"]
["Tage im Jahr",{"$f":"'Rentabilitätsplanung 12 Monate'!N3","v":0}]
["davon Urlaub / geschlossen",{"$f":"'Rentabilitätsplanung 12 Monate'!N4","v":0}]
["umsatzwirksame Tage",{"$f":"'Rentabilitätsplanung 12 Monate'!N5","v":0},{"$f":"C3-C4","v":0},{"$f":"D3-D4","v":0}]
["* durchschn. Umsatz am Tag",{"$f":"'Rentabilitätsplanung 12 Monate'!N6","v":0}]
["Umsatz Jahr",{"$f":"'Rentabilitätsplanung 12 Monate'!N7","v":0},{"$f":"C5*C6","v":0},{"$f":"D5*D6","v":0}]
[]
["Betriebliche variable Ausgaben"]
["Material- und Wareneinkauf",{"$f":"'Rentabilitätsplanung 12 Monate'!N10","v":0}]
["Ausschuss / Garantieleistung",{"$f":"'Rentabilitätsplanung 12 Monate'!N11","v":0}]
["freie Mitarbeiter (Auftragnehmer)",{"$f":"'Rentabilitätsplanung 12 Monate'!N12","v":0}]
["Büromaterial / Porto / Versand",{"$f":"'Rentabilitätsplanung 12 Monate'!N13","v":0}]
["Telefon / Internet / Mobil",{"$f":"'Rentabilitätsplanung 12 Monate'!N14","v":0}]
["Marketing",{"$f":"'Rentabilitätsplanung 12 Monate'!N15","v":0}]
["steuerliche Betreuung",{"$f":"'Rentabilitätsplanung 12 Monate'!N16","v":0}]
["Fahrzeugkosten",{"$f":"'Rentabilitätsplanung 12 Monate'!N17","v":0}]
["Reisekosten",{"$f":"'Rentabilitätsplanung 12 Monate'!N18","v":0}]
["Reparatur / Instandhaltung",{"$f":"'Rentabilitätsplanung 12 Monate'!N19","v":0}]
["sonstige variable Ausgaben",{"$f":"'Rentabilitätsplanung 12 Monate'!N20","v":0}]
["Summe variabler Ausgaben",{"$f":"'Rentabilitätsplanung 12 Monate'!N21","v":0},{"$f":"SUM(C10:C20)","v":0},{"$f":"SUM(D10:D20)","v":0}]
[]
["Betriebliche fixe Ausgaben"]
["Personal (angestellte Mitarbeiter)",{"$f":"'Rentabilitätsplanung 12 Monate'!N23","v":0}]
["Büromiete, inkl. Nebenkosten",{"$f":"'Rentabilitätsplanung 12 Monate'!N24","v":0}]
["Betriebshaftpflichtversicherung",{"$f":"'Rentabilitätsplanung 12 Monate'!N25","v":0}]
["Rechtschutzversicherung",{"$f":"'Rentabilitätsplanung 12 Monate'!N26","v":0}]
["Pflichtbeiträge (IHK, HWK, BG)",{"$f":"'Rentabilitätsplanung 12 Monate'!N27","v":0}]
["Abschreibungen",{"$f":"'Rentabilitätsplanung 12 Monate'!N28","v":0}]
["Fremdkapitalzinsen",{"$f":"'Rentabilitätsplanung 12 Monate'!N29","v":0}]
["Darlehenstilgung",{"$f":"'Rentabilitätsplanung 12 Monate'!N30","v":0}]
["Geschäftskonto",{"$f":"'Rentabilitätsplanung 12 Monate'!N31","v":0}]
["GEZ",{"$f":"'Rentabilitätsplanung 12 Monate'!N32","v":0}]
["sonstige fixe Ausgaben",{"$f":"'Rentabilitätsplanung 12 Monate'!N33","v":0}]
["Summe fixer Ausgaben",{"$f":"'Rentabilitätsplanung 12 Monate'!N34","v":0},{"$f":"SUM(C24:C34)","v":0},{"$f":"SUM(D24:D34)","v":0}]
["Betriebsergebnis",{"$f":"'Rentabilitätsplanung 12 Monate'!N35","v":0},{"$f":"C7-C21-C35","v":0},{"$f":"D7-D21-D35","v":0}]
["Steuerrücklage",{"$f":"'Rentabilitätsplanung 12 Monate'!N36","v":0},{"$f":"C36*0.2","v":0},{"$f":"D36*0.2","v":0}]
["verfügbares Einkommen",{"$f":"'Rentabilitätsplanung 12 Monate'!N37","v":0},{"$f":"C36-C37","v":0},{"$f":"D36-D37","v":0}]
["Lebenshaltungskosten \nlt. Persönlicher Bedarf",{"$f":"'Rentabilitätsplanung 12 Monate'!N38","v":0}]
["Über-/Unterdeckung",{"$f":"'Rentabilitätsplanung 12 Monate'!N39","v":0},{"$f":"C38-C39","v":0},{"$f":"D38-D39","v":0}]